[Event "Championnat National du Sénégal"]
[Site "Arène National, Pikine, Senegal"]
[Date "????.??.??"]
[Round "5.4"]
[White "Lesbros, Bernard"]
[Black "Koné, Sidy"]
[Result "1-0"]
[TimeControl "01.30 fb .30"]
[WhiteElo "1878"]
[BlackElo "1400"]

1. Nf3 {[%clk 01:30:55]} {[%emt 00:15:47]} Nf6 {[%clk 01:30:49]} 2. c4 {[%clk
01:31:17]} e6 {[%clk 01:29:48]} 3. g3 {[%clk 01:31:35]} d5 {[%clk 01:30:09]} 4.
d4 {[%clk 01:31:37]} Be7 {[%clk 01:30:10]} 5. Bg2 {[%clk 01:31:52]} O-O {[%clk
01:30:28]} 6. Qc2 {[%clk 01:31:53]} c6 {[%clk 01:30:38]} 7. O-O {[%clk
01:31:47]} b6 {[%clk 01:30:53]} 8. Nbd2 {[%clk 01:31:48]} Ba6 {[%clk 01:30:37]}
9. b3 {[%clk 01:31:00]} Nbd7 {[%clk 01:25:15]} 10. Bb2 {[%clk 01:30:27]} Re8
{[%clk 01:23:15]} 11. e4 {[%clk 01:28:04]} Nf8 {[%clk 01:22:30]} 12. Rac1
{[%clk 01:26:14]} Ng6 {[%clk 01:20:54]} 13. Ne5 {[%clk 01:18:43]} Nxe5 {[%clk
01:18:00]} 14. dxe5 {[%clk 01:18:57]} Nd7 {[%clk 01:17:57]} 15. exd5 {[%clk
01:17:35]} cxd5 {[%clk 01:17:13]} 16. Rfd1 {[%clk 01:01:07]} {[%emt 00:01:09]}
Rc8 {[%clk 01:14:35]} {[%emt 00:03:09]} 17. Qb1 {[%clk 00:56:09]} {[%emt
00:05:28]} dxc4 {[%clk 01:09:09]} {[%emt 00:05:57]} 18. Bf1 {[%clk 00:51:54]}
{[%emt 00:04:44]} Qc7 {[%clk 01:04:07]} {[%emt 00:05:32]} 19. Nxc4 {[%clk
00:48:08]} {[%emt 00:04:16]} Bxc4 {[%clk 00:57:51]} {[%emt 00:06:46]} 20. Rxc4
{[%clk 00:46:26]} {[%emt 00:02:13]} Bc5 {[%clk 00:50:38]} {[%emt 00:07:42]} 21.
b4 {[%clk 00:43:40]} {[%emt 00:03:16]} b5 {[%clk 00:41:55]} {[%emt 00:09:14]}
22. Rh4 {[%clk 00:39:57]} {[%emt 00:04:12]} Bxf2+ {[%clk 00:35:08]} {[%emt
00:07:17]} 23. Kxf2 {[%clk 00:39:17]} {[%emt 00:01:10]} Qc2+ {[%clk 00:34:40]}
{[%emt 00:00:59]} 24. Qxc2 {[%clk 00:37:57]} {[%emt 00:01:50]} Rxc2+ {[%clk
00:34:57]} {[%emt 00:00:13]} 25. Ke1 {[%clk 00:34:29]} {[%emt 00:03:57]} Rxb2
{[%clk 00:32:34]} {[%emt 00:02:53]} 26. Rxd7 {[%clk 00:33:54]} {[%emt
00:01:05]} Rc8 {[%clk 00:31:15]} {[%emt 00:01:49]} 27. Rhd4 {[%clk 00:33:17]}
{[%emt 00:01:08]} Kf8 {[%clk 00:29:58]} {[%emt 00:01:47]} 28. Bxb5 {[%clk
00:29:51]} {[%emt 00:03:56]} g6 {[%clk 00:26:18]} {[%emt 00:04:10]} 29. Rd8+
{[%clk 00:30:10]} {[%emt 00:00:12]} Rxd8 {[%clk 00:26:35]} {[%emt 00:00:13]} 30.
Rxd8+ {[%clk 00:30:29]} {[%emt 00:00:11]} Kg7 {[%clk 00:27:00]} {[%emt
00:00:05]} 31. Rd2 {[%clk 00:28:12]} {[%emt 00:02:46]} Rxb4 {[%clk 00:26:53]}
{[%emt 00:00:38]} 32. a4 {[%clk 00:27:27]} {[%emt 00:01:14]} Rb1+ {[%clk
00:25:30]} {[%emt 00:01:54]} 33. Ke2 {[%clk 00:26:30]} {[%emt 00:01:26]} Rb4
{[%clk 00:24:19]} {[%emt 00:01:41]} 34. Ke3 {[%clk 00:25:44]} {[%emt 00:01:15]}
f5 {[%clk 00:21:22]} {[%emt 00:03:28]} 35. Rd4 {[%clk 00:23:32]} {[%emt
00:02:41]} Rb3+ {[%clk 00:17:56]} {[%emt 00:03:56]} 36. Bd3 {[%clk 00:21:24]}
{[%emt 00:02:37]} Rb7 {[%clk 00:16:26]} {[%emt 00:02:01]} 37. Bb5 {[%clk
00:20:21]} {[%emt 00:01:32]} Kf7 {[%clk 00:16:16]} {[%emt 00:00:40]} 38. Rd7+
{[%clk 00:20:38]} {[%emt 00:00:13]} Rxd7 {[%clk 00:16:32]} {[%emt 00:00:15]} 39.
Bxd7 {[%clk 00:21:05]} {[%emt 00:00:02]} Ke7 {[%clk 00:15:56]} {[%emt
00:01:07]} 40. Bc8 {[%clk 00:21:22]} {[%emt 00:00:13]} g5 {[%clk 00:14:38]}
{[%emt 00:01:48]} 41. Kd4 {[%clk 00:19:35]} {[%emt 00:02:16]} h5 {[%clk
00:13:04]} {[%emt 00:02:04]} 42. h4 {[%clk 00:17:03]} {[%emt 00:03:02]} f4
{[%clk 00:09:13]} {[%emt 00:04:20]} 43. gxf4 {[%clk 00:11:23]} {[%emt
00:06:11]} gxh4 {[%clk 00:08:03]} {[%emt 00:01:40]} 44. Ke3 {[%clk 00:10:42]}
{[%emt 00:01:10]} h3 {[%clk 00:06:49]} {[%emt 00:01:45]} 45. Kf2 {[%clk
00:10:28]} {[%emt 00:00:44]} h4 {[%clk 00:05:58]} {[%emt 00:01:22]} 46. Kg1
{[%clk 00:10:34]} {[%emt 00:00:23]} 1-0

[Event "Championnat National du Sénégal"]
[Site "Arène National, Pikine, Senegal"]
[Date "????.??.??"]
[Round "5.1"]
[White "Ly, Abdoulaye Aziz"]
[Black "Diop, Wara"]
[Result "0-1"]
[TimeControl "01.30 fb .30"]
[WhiteElo "1400"]
[BlackElo "1636"]

1. e4 {[%clk 01:30:50]} {[%emt 00:02:31]} d5 {[%clk 01:29:44]} 2. exd5 {[%clk
01:30:58]} Nf6 {[%clk 01:29:23]} 3. d4 {[%clk 01:28:57]} Nxd5 {[%clk 01:29:25]}
4. c4 {[%clk 01:26:55]} Nb6 {[%clk 01:29:28]} 5. Be3 {[%clk 01:23:13]} c5
{[%clk 01:28:00]} 6. dxc5 {[%clk 01:21:48]} Qxd1+ {[%clk 01:28:08]} 7. Kxd1
{[%clk 01:22:17]} N6d7 {[%clk 01:28:23]} 8. Nc3 {[%clk 01:11:46]} e6 {[%clk
01:28:40]} 9. Nb5 {[%clk 01:10:19]} Na6 {[%clk 01:28:07]} 10. b4 {[%clk
01:06:30]} Be7 {[%clk 01:28:28]} 11. a3 {[%clk 01:05:21]} O-O {[%clk 01:28:42]}
12. Kc2 {[%clk 00:59:32]} Ne5 {[%clk 01:24:33]} 13. Be2 {[%clk 00:58:16]} Bd7
14. Nd6 {[%clk 00:55:46]} {[%emt 00:00:27]} b6 {[%clk 01:16:01]} {[%emt
00:06:00]} 15. Rd1 {[%clk 00:53:53]} {[%emt 00:02:22]} Ba4+ {[%clk 01:12:56]}
{[%emt 00:03:35]} 16. Kc3 {[%clk 00:53:31]} {[%emt 00:00:54]} Bxd1 {[%clk
01:13:08]} {[%emt 00:00:17]} 17. Bxd1 {[%clk 00:53:59]} bxc5 {[%clk 01:11:58]}
{[%emt 00:01:40]} 18. Ne4 {[%clk 00:53:18]} {[%emt 00:01:10]} cxb4+ {[%emt
00:01:03]} 19. Kd4 {[%clk 00:53:18]} {[%emt 00:02:55]} 0-1

[Event "Championnat National du Sénégal"]
[Site "Arène National, Pikine, Senegal"]
[Date "????.??.??"]
[Round "5.2"]
[White "Diatta, Robert Kaundum A."]
[Black "Diankha, Bara"]
[Result "1-0"]
[TimeControl "01.30 fb .30"]
[WhiteElo "1635"]
[BlackElo "1400"]

1. d4 {[%clk 01:30:56]} {[%emt 00:01:08]} c6 {[%clk 01:30:25]} 2. e3 {[%clk
01:31:05]} d5 {[%clk 01:30:36]} 3. Bd3 {[%clk 01:31:25]} Nf6 {[%clk 01:30:40]}
4. Nd2 {[%clk 01:31:43]} Bg4 {[%clk 01:30:34]} 5. Ne2 {[%clk 01:31:46]} Bxe2
{[%clk 01:30:32]} 6. Qxe2 {[%clk 01:32:05]} e6 {[%clk 01:30:59]} 7. f4 {[%clk
01:32:18]} Nbd7 {[%clk 01:30:27]} 8. O-O h5 9. e4 {[%clk 01:31:02]} Qb6 {[%clk
01:30:00]} 10. c3 {[%clk 01:31:16]} O-O-O {[%clk 01:29:35]} 11. e5 {[%clk
01:31:28]} Ne8 {[%clk 01:29:35]} 12. a4 {[%clk 01:31:43]} a5 {[%clk 01:29:17]}
13. Nf3 {[%clk 01:30:58]} Be7 {[%clk 01:29:19]} 14. Be3 {[%clk 01:30:59]} g6
{[%clk 01:28:24]} 15. b4 {[%clk 01:31:20]} axb4 {[%clk 01:27:06]} 16. cxb4
{[%clk 01:31:14]} Bxb4 {[%clk 01:26:04]} 17. Rfb1 Qa5 18. Qb2 {[%clk 01:29:11]}
b6 {[%clk 01:21:16]} 19. Qxb4 {[%clk 01:29:27]} Qxb4 {[%clk 01:20:28]} 20. Rxb4
{[%clk 01:29:44]} Nc7 {[%clk 01:19:51]} 21. Rc1 {[%clk 01:29:40]} Kb7 {[%clk
01:19:41]} 22. a5 {[%clk 01:29:54]} b5 {[%clk 01:19:39]} 23. Rb2 {[%clk
01:29:47]} Ra8 {[%clk 01:19:31]} 24. Bd2 {[%clk 01:29:57]} Ra6 {[%clk
01:17:54]} 25. Bb4 {[%clk 01:29:47]} h4 {[%clk 01:12:56]} 26. Nd2 {[%clk
01:28:53]} Ne8 {[%clk 01:12:55]} 27. Nb3 {[%clk 01:28:27]} Ng7 {[%clk
01:12:54]} 28. Rbc2 {[%clk 01:28:39]} Nf5 {[%clk 01:12:38]} 29. Bxf5 {[%clk
01:26:34]} gxf5 {[%clk 01:12:46]} 30. Rc3 {[%clk 01:26:45]} f6 {[%clk
01:12:05]} 31. Bd6 Rg8 {[%clk 01:09:33]} 32. exf6 {[%clk 01:26:59]} Nxf6 {[%clk
01:09:59]} 33. Nc5+ {[%clk 01:27:02]} Ka7 {[%clk 01:10:18]} 34. Nxa6 {[%clk
01:26:45]} Kxa6 35. Rxc6+ {[%clk 01:26:59]} Kxa5 {[%clk 01:11:14]} 36. Ra1#
{[%clk 01:25:53]} Nd7 {[%clk 01:11:14]} 1-0

[Event "Championnat National du Sénégal"]
[Site "Arène National, Pikine, Senegal"]
[Date "????.??.??"]
[Round "5.3"]
[White "Valerevna, Nadezhda Marochkina"]
[Black "Bodin-Hulin, Thomas"]
[Result "0-1"]
[TimeControl "01.30 fb .30"]
[WhiteElo "1668"]
[BlackElo "1838"]

1. d4 {[%clk 01:30:56]} {[%emt 00:01:04]} Nf6 {[%clk 01:30:54]} 2. c4 {[%clk
01:31:19]} g6 {[%clk 01:30:56]} 3. Nf3 {[%clk 01:31:40]} Bg7 {[%clk 01:30:50]}
4. Nc3 {[%clk 01:30:58]} d6 {[%clk 01:30:27]} 5. h3 {[%clk 01:29:41]} O-O
{[%clk 01:30:18]} 6. Bf4 {[%clk 01:29:36]} c5 {[%clk 01:30:14]} 7. e3 {[%clk
01:23:38]} Qa5 {[%clk 01:26:20]} 8. Be2 {[%clk 01:18:43]} Ne4 {[%clk 01:07:44]}
9. Qb3 cxd4 {[%clk 00:58:36]} 10. exd4 e5 {[%clk 00:53:31]} {[%emt 00:04:29]}
11. dxe5 {[%clk 01:15:22]} {[%emt 00:01:11]} dxe5 {[%clk 00:53:56]} {[%emt
00:00:05]} 12. Bd2 {[%clk 01:09:22]} {[%emt 00:06:31]} Nxd2 {[%clk 00:51:19]}
{[%emt 00:03:05]} 13. Nxd2 {[%clk 01:09:13]} {[%emt 00:00:40]} Nc6 {[%clk
00:51:39]} {[%emt 00:00:10]} 14. O-O {[%clk 01:00:55]} {[%emt 00:08:47]} Nd4
{[%clk 00:49:20]} {[%emt 00:02:49]} 15. Qd1 {[%clk 01:00:13]} {[%emt 00:01:12]}
Be6 {[%clk 00:41:10]} {[%emt 00:08:40]} 16. Bd3 {[%clk 00:55:00]} {[%emt
00:05:42]} f5 {[%clk 00:37:14]} {[%emt 00:04:28]} 17. Nb3 {[%clk 00:52:52]}
{[%emt 00:02:38]} Qd8 {[%clk 00:33:05]} {[%emt 00:04:39]} 18. Rc1 {[%clk
00:49:12]} {[%emt 00:04:09]} Rc8 {[%clk 00:23:15]} {[%emt 00:10:22]} 19. Ne2
{[%clk 00:41:04]} {[%emt 00:08:37]} Qh4 {[%clk 00:16:38]} {[%emt 00:07:08]} 20.
Nbxd4 {[%clk 00:40:13]} {[%emt 00:01:21]} exd4 {[%clk 00:16:50]} {[%emt
00:00:19]} 21. f4 {[%clk 00:38:37]} {[%emt 00:02:06]} Rfe8 {[%clk 00:16:48]}
{[%emt 00:00:32]} 22. b3 {[%clk 00:37:35]} {[%emt 00:01:32]} Bd7 {[%clk
00:15:36]} {[%emt 00:01:42]} 23. Qe1 {[%clk 00:36:11]} {[%emt 00:01:53]} Qf6
{[%clk 00:13:34]} {[%emt 00:02:32]} 24. Qf2 {[%clk 00:34:53]} {[%emt 00:01:47]}
Bc6 {[%clk 00:12:36]} {[%emt 00:01:29]} 25. Rcd1 {[%clk 00:34:12]} {[%emt
00:01:10]} Rcd8 {[%clk 00:11:06]} {[%emt 00:02:01]} 26. Rd2 {[%clk 00:33:34]}
{[%emt 00:01:08]} b6 {[%clk 00:06:41]} {[%emt 00:04:55]} 27. Kh1 {[%clk
00:30:59]} {[%emt 00:03:04]} Re3 {[%clk 00:05:43]} {[%emt 00:01:28]} 28. Kh2
{[%clk 00:29:33]} {[%emt 00:01:56]} Bf8 {[%clk 00:04:35]} {[%emt 00:01:39]} 29.
Rdd1 {[%clk 00:25:36]} {[%emt 00:04:27]} Rde8 {[%clk 00:04:01]} {[%emt
00:01:05]} 30. Nc1 {[%clk 00:24:30]} {[%emt 00:01:36]} a5 {[%clk 00:03:53]}
{[%emt 00:00:38]} 31. Rfe1 {[%clk 00:21:44]} {[%emt 00:03:15]} Bc5 {[%clk
00:03:26]} {[%emt 00:00:57]} 32. Re2 {[%clk 00:21:18]} {[%emt 00:00:55]} Bb7
{[%clk 00:03:24]} {[%emt 00:00:33]} 33. Qe1 {[%clk 00:19:34]} {[%emt 00:02:14]}
Qc6 {[%clk 00:03:03]} {[%emt 00:00:52]} 34. Qf1 {[%clk 00:19:12]} {[%emt
00:00:51]} Qd6 {[%clk 00:02:19]} {[%emt 00:01:14]} 35. Rxe3 {[%clk 00:18:47]}
{[%emt 00:00:55]} Re7 {[%emt 00:00:12]} 36. Re4 Rxe4 {[%clk 00:02:37]} 37. Be2
{[%clk 00:18:15]} {[%emt 00:01:00]} Re3 {[%clk 00:02:14]} 38. Rd2 {[%clk
00:17:57]} {[%emt 00:01:42]} Qe6 {[%clk 00:01:31]} 39. Nd3 {[%clk 00:15:56]}
{[%emt 00:03:44]} g5 {[%clk 00:01:30]} 40. Kg1 {[%clk 00:15:25]} {[%emt
00:01:33]} Bd6 {[%clk 00:01:33]} 41. Bd1 {[%clk 00:15:22]} {[%emt 00:00:59]}
Rg3 {[%clk 00:01:46]} 42. Qf2 {[%clk 00:14:57]} {[%emt 00:01:12]} Qe3 {[%clk
00:01:56]} 0-1

[ePGN "0.1;DGT LiveChess/2.2"]

[Event "Championnat National du Sénégal"]
[Site "Arène National, Pikine, Senegal"]
[Date "????.??.??"]
[Round "6.2"]
[White "Koné, Sidy"]
[Black "Ba, El Hadji Seydou Nourou"]
[Result "0-1"]
[TimeControl "01.30 fb .30"]
[WhiteElo "1400"]
[BlackElo "1644"]

1. e4 {[%clk 01:30:49]} {[%emt 00:00:13]} c5 {[%clk 01:30:55]} {[%emt
00:00:04]} 2. c3 {[%clk 01:31:13]} {[%emt 00:00:06]} Nf6 {[%clk 01:31:20]}
{[%emt 00:00:05]} 3. e5 {[%clk 01:31:27]} {[%emt 00:00:16]} Nd5 {[%clk
01:31:48]} {[%emt 00:00:03]} 4. d4 {[%clk 01:31:40]} {[%emt 00:00:17]} cxd4
{[%clk 01:32:04]} {[%emt 00:00:14]} 5. Nf3 {[%clk 01:31:57]} {[%emt 00:00:12]}
Nc6 {[%clk 01:31:21]} {[%emt 00:01:14]} 6. Bc4 {[%clk 01:32:03]} {[%emt
00:00:24]} Nb6 {[%clk 01:31:01]} {[%emt 00:00:50]} 7. Bb3 {[%clk 01:32:10]}
{[%emt 00:00:23]} d6 {[%clk 01:29:15]} {[%emt 00:02:17]} 8. exd6 {[%clk
01:32:21]} {[%emt 00:00:18]} Qxd6 {[%clk 01:29:22]} {[%emt 00:00:23]} 9. O-O
{[%clk 01:32:09]} {[%emt 00:00:42]} Bf5 {[%clk 01:25:24]} {[%emt 00:04:28]} 10.
Ng5 {[%clk 01:26:48]} {[%emt 00:05:51]} e6 {[%clk 01:23:46]} {[%emt 00:02:09]}
11. Qh5 {[%clk 01:22:21]} {[%emt 00:04:56]} Bg6 {[%clk 01:19:10]} {[%emt
00:05:07]} 12. Qf3 {[%clk 01:22:01]} {[%emt 00:00:48]} Be7 {[%clk 01:10:46]}
{[%emt 00:08:55]} 13. Na3 {[%clk 01:11:45]} {[%emt 00:10:46]} O-O {[%clk
01:07:46]} {[%emt 00:03:31]} 14. Nb5 {[%clk 01:05:13]} {[%emt 00:07:02]} Qc5
{[%clk 01:06:17]} {[%emt 00:01:59]} 15. Nc7 {[%clk 00:59:49]} {[%emt 00:05:54]}
Bxg5 {[%clk 01:03:11]} {[%emt 00:03:36]} 16. Bxg5 {[%clk 00:51:41]} {[%emt
00:08:38]} Qxg5 {[%clk 00:59:43]} {[%emt 00:03:58]} 17. Nxa8 {[%clk 00:51:01]}
{[%emt 00:01:09]} Rxa8 {[%clk 00:59:21]} {[%emt 00:00:52]} 18. cxd4 {[%clk
00:49:40]} {[%emt 00:01:51]} Nxd4 {[%clk 00:55:23]} {[%emt 00:04:28]} 19. Qxb7
{[%clk 00:47:03]} {[%emt 00:03:07]} Nxb3 {[%clk 00:53:29]} {[%emt 00:02:25]} 20.
axb3 {[%clk 00:46:25]} {[%emt 00:01:06]} Qd5 {[%clk 00:40:18]} {[%emt
00:13:41]} 21. Rxa7 {[%clk 00:42:09]} {[%emt 00:04:46]} Qxb7 {[%clk 00:39:36]}
{[%emt 00:01:12]} 22. Rxb7 {[%clk 00:42:23]} {[%emt 00:00:16]} Nd5 {[%clk
00:39:51]} {[%emt 00:00:15]} 23. g3 {[%clk 00:36:59]} {[%emt 00:05:53]} h5
{[%clk 00:39:31]} {[%emt 00:00:51]} 24. Rc1 {[%clk 00:27:57]} {[%emt 00:09:28]}
Kh7 {[%clk 00:31:29]} {[%emt 00:08:35]} 25. Re1 {[%clk 00:20:54]} {[%emt
00:07:33]} Ra2 {[%clk 00:30:45]} {[%emt 00:01:15]} 26. Re2 {[%clk 00:19:36]}
{[%emt 00:01:49]} Bd3 {[%clk 00:28:51]} {[%emt 00:02:20]} 27. Re1 {[%clk
00:11:11]} {[%emt 00:08:58]} Kg6 {[%clk 00:28:21]} {[%emt 00:01:00]} 28. Rd1
{[%clk 00:07:20]} {[%emt 00:04:21]} Bc2 {[%clk 00:27:30]} {[%emt 00:01:20]} 29.
Rc1 {[%clk 00:06:39]} {[%emt 00:01:11]} Rxb2 {[%clk 00:26:59]} {[%emt
00:01:01]} 30. b4 {[%clk 00:04:30]} {[%emt 00:02:39]} Be4 {[%clk 00:26:10]}
{[%emt 00:01:19]} 31. Rb8 {[%clk 00:01:41]} {[%emt 00:03:20]} h4 {[%clk
00:23:21]} {[%emt 00:03:18]} 32. Re1 {[%clk 00:00:37]} {[%emt 00:01:34]} h3
{[%clk 00:22:54]} {[%emt 00:00:57]} 33. Rh8 {[%clk 00:00:33]} {[%emt 00:00:35]}
Bg2 {[%clk 00:22:59]} {[%emt 00:00:24]} 34. Rd8 {[%clk 00:00:31]} {[%emt
00:00:32]} Nc3 {[%clk 00:21:16]} {[%emt 00:02:13]} 35. Rdd1 {[%clk 00:00:33]}
{[%emt 00:00:29]} Nxd1 {[%clk 00:21:05]} {[%emt 00:00:41]} 36. Rxd1 {[%clk
00:00:50]} {[%emt 00:00:12]} Rxb4 {[%clk 00:21:23]} {[%emt 00:00:12]} 37. f4
{[%clk 00:00:50]} {[%emt 00:00:30]} Rb2 {[%clk 00:21:07]} {[%emt 00:00:46]} 38.
Re1 {[%clk 00:01:07]} {[%emt 00:00:13]} Bd5 {[%clk 00:21:05]} {[%emt 00:00:31]}
39. Rd1 {[%clk 00:00:32]} {[%emt 00:01:06]} Rg2+ {[%clk 00:21:17]} {[%emt
00:00:17]} 40. Kf1 {[%clk 00:00:57]} {[%emt 00:00:06]} Bc4+ {[%clk 00:19:32]}
{[%emt 00:02:15]} 41. Ke1 {[%clk 00:00:33]} {[%emt 00:00:54]} Re2+ {[%clk
00:19:50]} {[%emt 00:00:11]} 42. Kf1 {[%clk 00:00:35]} {[%emt 00:00:28]} Rxh2+
{[%clk 00:20:09]} {[%emt 00:00:11]} 43. Ke1 {[%emt 00:18:57]} 0-1

[Event "Championnat National du Sénégal"]
[Site "Arène National, Pikine, Senegal"]
[Date "????.??.??"]
[Round "6.5"]
[White "Ly, Abdoulaye Aziz"]
[Black "Diatta, Robert Kaundum A."]
[Result "1-0"]
[TimeControl "01.30 fb .30"]
[WhiteElo "1400"]
[BlackElo "1635"]

1. e4 {[%clk 01:30:55]} {[%emt 00:00:04]} d5 {[%clk 01:20:20]} {[%emt
00:10:40]} 2. exd5 {[%clk 01:31:13]} {[%emt 00:00:12]} Nf6 {[%clk 01:20:44]}
{[%emt 00:00:06]} 3. d4 {[%emt 00:09:58]} Nxd5 {[%clk 01:11:57]} {[%emt
00:00:02]} 4. c4 {[%clk 01:30:35]} {[%emt 00:00:55]} Nf6 {[%clk 01:09:42]}
{[%emt 00:02:45]} 5. Nf3 {[%clk 01:30:07]} {[%emt 00:00:58]} Bg4 {[%clk
01:09:57]} {[%emt 00:00:15]} 6. Be2 {[%clk 01:29:06]} {[%emt 00:01:28]} e6
{[%clk 01:10:16]} {[%emt 00:00:14]} 7. Qb3 {[%clk 01:27:06]} {[%emt 00:02:28]}
Qc8 {[%clk 01:07:42]} {[%emt 00:03:05]} 8. Bg5 {[%clk 01:25:54]} {[%emt
00:01:42]} Be7 {[%clk 01:07:59]} {[%emt 00:00:14]} 9. h3 {[%clk 01:25:33]}
{[%emt 00:00:51]} Bf5 {[%clk 01:07:58]} {[%emt 00:00:30]} 10. Nc3 {[%clk
01:22:00]} {[%emt 00:04:04]} O-O {[%clk 01:03:39]} {[%emt 00:01:58]} 11. Nh4
{[%clk 01:16:49]} {[%emt 00:08:33]} Bg6 {[%clk 01:03:43]} {[%emt 00:00:25]} 12.
Bf3 {[%clk 01:14:01]} {[%emt 00:03:18]} Nbd7 {[%clk 01:03:31]} {[%emt
00:00:40]} 13. Bxb7 {[%clk 01:13:00]} {[%emt 00:01:34]} Qd8 {[%clk 01:03:22]}
{[%emt 00:00:39]} 14. Bxa8 {[%clk 01:12:32]} {[%emt 00:00:58]} Qxa8 {[%clk
01:03:42]} {[%emt 00:00:10]} 15. Nxg6 {[%clk 01:12:36]} {[%emt 00:00:26]} hxg6
{[%clk 01:03:33]} {[%emt 00:00:38]} 16. O-O {[%clk 01:12:17]} {[%emt 00:00:49]}
c5 {[%clk 01:03:21]} {[%emt 00:00:42]} 17. Rad1 {[%clk 01:09:37]} {[%emt
00:03:09]} cxd4 {[%clk 01:03:30]} {[%emt 00:00:22]} 18. Rxd4 {[%clk 01:09:59]}
{[%emt 00:00:07]} Bc5 {[%clk 01:03:47]} {[%emt 00:00:13]} 19. Rd2 {[%clk
01:09:19]} {[%emt 00:01:08]} Rb8 {[%clk 01:04:08]} {[%emt 00:00:12]} 20. Qc2
{[%clk 01:09:02]} {[%emt 00:00:46]} Nf8 {[%clk 01:02:54]} {[%emt 00:01:44]} 21.
Bxf6 {[%clk 01:08:55]} {[%emt 00:00:38]} gxf6 {[%clk 01:03:21]} {[%emt
00:00:03]} 22. Qe4 {[%clk 01:08:17]} {[%emt 00:01:02]} Kg7 {[%clk 01:02:31]}
{[%emt 00:01:25]} 23. Qxa8 {[%clk 01:08:21]} {[%emt 00:00:26]} Rxa8 {[%clk
01:02:58]} {[%emt 00:00:03]} 24. a3 {[%clk 01:08:29]} {[%emt 00:00:22]} a5
{[%clk 01:03:17]} {[%emt 00:00:11]} 25. Na4 {[%clk 01:07:34]} {[%emt 00:01:25]}
Ba7 {[%clk 01:03:11]} {[%emt 00:00:36]} 26. Rfd1 {[%clk 01:07:03]} {[%emt
00:01:00]} Rc8 {[%clk 01:03:09]} {[%emt 00:00:34]} 27. Rc2 {[%clk 01:07:01]}
{[%emt 00:00:31]} e5 {[%clk 01:03:28]} {[%emt 00:00:12]} 28. c5 {[%clk
01:06:44]} {[%emt 00:00:47]} Ne6 {[%clk 01:03:38]} {[%emt 00:00:19]} 29. Rd7
{[%clk 01:06:05]} {[%emt 00:01:06]} Nd4 {[%clk 01:03:03]} {[%emt 00:01:09]} 30.
Rxa7 {[%clk 01:00:34]} {[%emt 00:06:00]} Nxc2 {[%clk 01:03:14]} {[%emt
00:00:18]} 31. Rxa5 {[%clk 01:00:56]} {[%emt 00:00:08]} Kf8 {[%clk 01:03:07]}
{[%emt 00:00:37]} 32. Nb6 {[%clk 00:58:08]} {[%emt 00:03:16]} Rc6 {[%clk
01:03:28]} {[%emt 00:00:11]} 33. Ra7 {[%clk 00:58:08]} {[%emt 00:00:29]} Kg7
{[%clk 01:03:38]} {[%emt 00:00:22]} 34. b4 {[%clk 00:58:12]} {[%emt 00:00:24]}
e4 {[%clk 01:03:51]} {[%emt 00:00:17]} 35. Nd7 {[%clk 00:57:10]} {[%emt
00:01:31]} Nd4 {[%clk 01:03:56]} {[%emt 00:00:26]} 36. a4 {[%clk 00:56:58]}
{[%emt 00:00:43]} Rc8 {[%clk 01:03:51]} {[%emt 00:00:35]} 37. b5 {[%clk
00:56:31]} {[%emt 00:00:57]} 1-0

[Event "Championnat National du Sénégal"]
[Site "Arène National, Pikine, Senegal"]
[Date "????.??.??"]
[Round "6.1"]
[White "Diop, Wara"]
[Black "CM Wane, Al Hassane"]
[Result "1-0"]
[TimeControl "01.30 fb .30"]
[WhiteElo "1636"]
[BlackElo "1789"]

1. e4 {[%clk 01:28:21]} {[%emt 00:02:34]} c6 {[%clk 01:30:40]} {[%emt
00:00:21]} 2. d4 {[%clk 01:27:11]} {[%emt 00:01:39]} d5 {[%clk 01:31:02]}
{[%emt 00:00:08]} 3. Nc3 {[%clk 01:25:14]} {[%emt 00:02:27]} dxe4 {[%clk
01:31:04]} {[%emt 00:00:29]} 4. Nxe4 {[%clk 01:25:19]} {[%emt 00:00:24]} Bf5
{[%clk 01:31:31]} {[%emt 00:00:03]} 5. Ng3 {[%clk 01:24:49]} {[%emt 00:01:00]}
Bg6 {[%clk 01:31:36]} {[%emt 00:00:25]} 6. Nf3 {[%clk 01:24:41]} {[%emt
00:00:39]} Nf6 {[%clk 01:31:58]} {[%emt 00:00:08]} 7. c3 {[%clk 01:23:26]}
{[%emt 00:01:45]} e6 {[%clk 01:32:19]} {[%emt 00:00:10]} 8. Bg5 {[%clk
01:17:00]} {[%emt 00:06:55]} Nbd7 {[%clk 01:32:23]} {[%emt 00:00:27]} 9. h4
{[%clk 01:14:07]} {[%emt 00:03:21]} h6 {[%clk 01:32:33]} {[%emt 00:00:21]} 10.
h5 {[%clk 01:11:13]} {[%emt 00:03:23]} Bh7 {[%clk 01:32:24]} {[%emt 00:00:40]}
11. Bh4 {[%clk 01:09:13]} {[%emt 00:02:29]} Qb6 {[%clk 01:32:34]} {[%emt
00:00:20]} 12. Qd2 {[%clk 01:02:40]} {[%emt 00:07:03]} Nd5 {[%clk 01:30:16]}
{[%emt 00:02:48]} 13. Bc4 {[%clk 00:57:17]} {[%emt 00:05:53]} Bd6 {[%clk
01:28:17]} {[%emt 00:02:29]} 14. Ne2 {[%clk 00:55:16]} {[%emt 00:02:31]} O-O
{[%clk 01:23:57]} {[%emt 00:03:29]} 15. g4 {[%clk 00:55:35]} {[%emt 00:01:32]}
Be4 {[%clk 01:24:10]} {[%emt 00:00:17]} 16. Rh3 {[%clk 00:53:18]} {[%emt
00:02:47]} e5 {[%clk 01:24:17]} {[%emt 00:00:24]} 17. g5 {[%clk 00:50:41]}
{[%emt 00:03:06]} Bf5 {[%clk 01:17:35]} {[%emt 00:07:13]} 18. gxh6 {[%clk
00:44:20]} {[%emt 00:06:50]} Nf4 {[%clk 01:13:52]} {[%emt 00:04:13]} 19. hxg7
{[%clk 00:41:44]} {[%emt 00:03:06]} Kxg7 {[%clk 01:12:34]} {[%emt 00:01:48]} 20.
Rg3+ {[%clk 00:40:43]} {[%emt 00:01:30]} Kh7 {[%clk 01:12:40]} {[%emt
00:00:25]} 21. dxe5 {[%clk 00:33:55]} {[%emt 00:07:17]} Nxe2 {[%clk 01:06:21]}
{[%emt 00:06:49]} 22. Bxe2 {[%clk 00:23:48]} {[%emt 00:10:36]} Bxe5 {[%clk
01:01:25]} {[%emt 00:05:28]} 23. Nxe5 {[%clk 00:22:08]} {[%emt 00:02:09]} Nxe5
{[%clk 01:01:32]} {[%emt 00:00:23]} 24. Qg5 {[%clk 00:22:06]} {[%emt 00:00:31]}
Bg6 {[%clk 00:50:53]} {[%emt 00:11:10]} 25. Qxe5 {[%clk 00:21:49]} {[%emt
00:00:46]} Rae8 {[%clk 00:51:12]} {[%emt 00:00:12]} 26. Be7 {[%clk 00:16:18]}
{[%emt 00:06:00]} Rg8 {[%clk 00:41:15]} {[%emt 00:10:28]} 27. hxg6+ {[%clk
00:15:59]} {[%emt 00:00:49]} Rxg6 {[%clk 00:41:37]} {[%emt 00:00:08]} 28. O-O-O
{[%clk 00:15:29]} {[%emt 00:00:59]} Rxg3 {[%clk 00:31:55]} {[%emt 00:10:12]} 29.
Rh1+ {[%clk 00:15:16]} {[%emt 00:00:43]} Kg6 {[%clk 00:32:12]} {[%emt
00:00:14]} 30. Qf6# {[%clk 00:14:46]} {[%emt 00:01:00]} 1-0